Workbook

Sheet Pertes au dos
A1: Calculer les pertes au dos du plancher chauffant
A3: Ce programme permet de calculer le % de 'Pertes au dos de l'émetteur' produites pour un Plancher chauffant
A5: Type de plancher:
A7: Température intérieure de consigne : | D7: 20 | E7: 19
A8: Température de la cave ou du vide ventilé éventuel : | D8: 10 | E8: °C
A9: Température de surface du plancher chauffant : | D9: 28 | E9: °C
E10: (de 20°C a 28°C)
A11: Type de terrain | D11: 1 | E11: W/(m K) | F11: (Renseigner seulement dans le cas de pertes sur sol)
A12: Température moyenne extérieure : | D12: 6 | E12: °C | F12: (Renseigner seulement dans le cas de pertes sur l'exterieur)
A14: Caractéristiques du plancher :
C15: Couche | D15: Epaisseur [m] | E15: Conductivité [W/mK] | F15: Ressistance [m²K/W]
C16: Chape | D16: 0.07 | E16: 1.2
C17: Isolant | D17: 0.07 | E17: 0.025
C18: Dalle de béton | D18: 0.15 | E18: 2.1 | F18: 0
A20: Emission utile dans le local : | C20: =Calculs!C15*(Calculs!D18-D7) -> 80 | D20: W/m²
A22: Pertes vers le bas : | C22: =Calculs!B8 -> 9.15930651 | D22: W/m²
A24: Pourcentage de perte vers le bas : | C24: =C22/(C20+C22) -> 0.1027296742 | D24: % de la puissance totale

Sheet Calculs (hidden)
A1: Sur sol | D1: Cellule | E1: 3
A2: Sur local non chauffé ou vide sanitaire
A3: Sur l'extérieur
A4: Perte vers les bas =
D5: sol | E5: lnc ou vs | F5: ext
A6: Résistance vers le bas | B6: =INDEX(D6:F6,1,E1) -> 2.911428571 | C6: Résistance vers le bas | D6: ='Pertes au dos'!D17/'Pertes au dos'!E17+IF(ISERROR('Pertes au dos'!D18/'Pertes au dos'!E18),0,'Pertes au dos'!D18/'Pertes au dos'!E18)+'Pertes au dos'!F18+1/'Pertes au dos'!D11 -> 3.871428571 | E6: =0.17+'Pertes au dos'!D17/'Pertes au dos'!E17+IF(ISERROR('Pertes au dos'!D18/'Pertes au dos'!E18),0,'Pertes au dos'!D18/'Pertes au dos'!E18)+'Pertes au dos'!F18 -> 3.041428571 | F6: =0.04+'Pertes au dos'!D17/'Pertes au dos'!E17+IF(ISERROR('Pertes au dos'!D18/'Pertes au dos'!E18),0,'Pertes au dos'!D18/'Pertes au dos'!E18)+'Pertes au dos'!F18 -> 2.911428571
A7: U | B7: =1/B6 -> 0.3434739941 | C7: U | D7: =1/D6 -> 0.258302583 | E7: =1/E6 -> 0.3287928605 | F7: 0.3434739941
B8: =INDEX(D8:F8,1,E1) -> 9.15930651 | C8: pertes W/m² | D8: =D7*(D18-10) -> 5.854858549 | E8: =E7*(D18-'Pertes au dos'!D8) -> 7.452638171 | F8: =F7*(D18-'Pertes au dos'!D12) -> 9.15930651
A9: kequi reg all | B9: =INDEX(D9:F9,1,E1) -> 0.3434739941 | D9: =1/('Pertes au dos'!D17/'Pertes au dos'!E17+IF(ISERROR('Pertes au dos'!D18/'Pertes au dos'!E18),0,'Pertes au dos'!D18/'Pertes au dos'!E18)+'Pertes au dos'!F18) -> 0.3482587065 | E9: =E7 -> 0.3287928605 | F9: =F7 -> 0.3434739941
C11: En faisant l'hypothèse que le sol est à | F11: 10°C à 1m de profondeur
B13: Puissance utile =
B14: Rhaut | C14: =1/10+'Pertes au dos'!D16/'Pertes au dos'!E16 -> 0.1583333333
B15: k | C15: =1/C14 -> 6.315789474
B18: T couche eau | D18: =(10*'Pertes au dos'!D9-10*'Pertes au dos'!D7+Calculs!C15*'Pertes au dos'!D7)/Calculs!C15 -> 32.66666667

Sheet Donnees (hidden)
A1: hgf | B1: ghg | C1: gh
A2: Maison individuelle | B2: Salon/ Salle à manger | C2: 19 | F2: Usage habitation | H2: Dalle de béton
A3: Maison individuelle | B3: Chambre 1 | C3: 19 | F3: Commerces et bureaux | H3: Plancher à entrevous
A4: Maison individuelle | B4: Salle d'eau 1 | C4: 21 | F4: Hotels et pensions
A5: Maison individuelle | B5: Couloir 1 | C5: 19 | F5: Enseignement
A6: Maison individuelle | B6: Cuisine 1 | C6: 19
A7: Maison individuelle | B7: Buanderie | C7: 21
A8: Maison en bande | B8: Salon/ Salle à manger | C8: 19
A9: Maison en bande | B9: Chambre 1 | C9: 19
A10: Maison en bande | B10: Salle d'eau 1 | C10: 21
A11: Maison en bande | B11: Couloir 1 | C11: 19
A12: Maison en bande | B12: Cuisine 1 | C12: 19
A13: Maison en bande | B13: Buanderie | C13: 21
A14: Maison en bande | B14: Entrée | C14: 20
A15: Maison en bande | B15: Zone commune | C15: 20
A16: Maison en bande | B16: Escaliers 1 | C16: 20 | F16: Grave
A17: Logements collective | B17: Salon/ Salle à manger | C17: 19 | F17: Sable semi-dense
A18: Logements collective | B18: Chambre 1 | C18: 19 | F18: Limon
A19: Logements collective | B19: Salle d'eau 1 | C19: 21 | F19: Argile semi-dure
A20: Logements collective | B20: Couloir 1 | C20: 19 | F20: Roche molle
A21: Logements collective | B21: Cuisine 1 | C21: 19 | F21: Sable dense
A22: Logements collective | B22: Buanderie | C22: 21 | F22: Sable lâche
A23: Logements collective | B23: Entrée | C23: 20 | F23: Argile dure
A24: Logements collective | B24: Zone commune | C24: 20 | F24: Argille mole
A25: Logements collective | B25: Escaliers 1 | C25: 20 | F25: Roche dure
A26: Logements collective | B26: Bureau 1 | C26: 21
A27: Logements collective | B27: Toilettes | C27: 21
A28: Commerces et bureaux | B28: Bureau 1 | C28: 21
A29: Commerces et bureaux | B29: Bureau 2 | C29: 21
A30: Commerces et bureaux | B30: Salle de reunions | C30: 21
A31: Commerces et bureaux | B31: Salle des fêtes | C31: 21
A32: Commerces et bureaux | B32: salle de cours | C32: 21
A33: Commerces et bureaux | B33: Salle de repos | C33: 21
A34: Commerces et bureaux | B34: Vestibule d'entrée | C34: 21
A35: Commerces et bureaux | B35: Cuisine 2 | C35: 19
A36: Commerces et bureaux | B36: Salle à manger | C36: 21
A37: Commerces et bureaux | B37: Cafétéria | C37: 21
A38: Commerces et bureaux | B38: Toilettes | C38: 21
A39: Commerces et bureaux | B39: Escaliers 2 | C39: 20
A40: Commercial | B40: Escaliers 2 | C40: 20
A41: Commercial | B41: Bureau 1 | C41: 21
A42: Commercial | B42: Toilettes | C42: 21
A43: Commercial | B43: Salle à manger | C43: 21
A44: Commercial | B44: Cafétéria | C44: 21
A45: Bureaux administratives | B45: Bureau 1 | C45: 21
A46: Bureaux administratives | B46: Bureau 2 | C46: 21
A47: Bureaux administratives | B47: Salle de reunions | C47: 21
A48: Bureaux administratives | B48: Salle des fêtes | C48: 21
A49: Bureaux administratives | B49: salle de cours | C49: 21
A50: Bureaux administratives | B50: Salle de repos | C50: 21
A51: Bureaux administratives | B51: Vestibule d'entrée | C51: 21
A52: Bureaux administratives | B52: Cuisine 2 | C52: 19
A53: Bureaux administratives | B53: Salle à manger | C53: 21
A54: Bureaux administratives | B54: Cafétéria | C54: 21
A55: Bureaux administratives | B55: Toilettes | C55: 21
A56: Bureaux administratives | B56: Escaliers 2 | C56: 20
A57: Hotels et pensions | B57: Chambre 2 | C57: 21
A58: Hotels et pensions | B58: Dégagement | C58: 21
A59: Hotels et pensions | B59: Salle de bain | C59: 21
A60: Hotels et pensions | B60: Salon/ Salle à manger | C60: 21
A61: Hotels et pensions | B61: Cuisine 1 | C61: 19
A62: Hotels et pensions | B62: Réception | C62: 21
A63: Hotels et pensions | B63: Couloir 2 | C63: 21
A64: Hotels et pensions | B64: Salle à manger | C64: 21
A65: Hotels et pensions | B65: Cafétéria | C65: 21
A66: Hotels et pensions | B66: Salle de reunions | C66: 21
A67: Hotels et pensions | B67: Salle de lecture | C67: 21
A68: Hotels et pensions | B68: Gymnase 1 | C68: 21
A69: Hotels et pensions | B69: Escaliers 2 | C69: 20
A70: Hotels et pensions | B70: Toilettes | C70: 21
A71: Hotels et pensions | B71: Cuisine 2 | C71: 19
A72: Hotels et pensions | B72: Bureau 1 | C72: 21
A73: Parking | B73: Bureau 1 | C73: 21
A74: Parking | B74: Toilettes | C74: 21
A75: Affluence publique | B75: Bureau 1 | C75: 21
A76: Affluence publique | B76: Toilettes | C76: 21
A77: Affluence publique | B77: Local de sport | C77: 21
A78: Affluence publique | B78: Salle d'embarquement | C78: 21
A79: Enseignement | B79: Salle de cours | C79: 21
A80: Enseignement | B80: Salle de musique | C80: 21
A81: Enseignement | B81: Laboratoire | C81: 21
A82: Enseignement | B82: Atelier | C82: 21
A83: Enseignement | B83: Garderie | C83: 21
A84: Enseignement | B84: Bibliothèque | C84: 21
A85: Enseignement | B85: Salle des fêtes | C85: 21
A86: Enseignement | B86: Cafétéria | C86: 21
A87: Enseignement | B87: Salle à manger | C87: 21
A88: Enseignement | B88: Gymnase 2 | C88: 21
A89: Enseignement | B89: Vestiaires | C89: 21
A90: Enseignement | B90: Infirmerie | C90: 21
A91: Enseignement | B91: Salle polyvalente | C91: 21
A92: Enseignement | B92: Bureau 2 | C92: 21
A93: Enseignement | B93: Salle de professeurs | C93: 21
A94: Enseignement | B94: Zone administrative | C94: 21
A95: Enseignement | B95: Toilettes | C95: 21
A96: Enseignement | B96: Escaliers 2 | C96: 20
A97: Enseignement | B97: Cuisine 1 | C97: 19
A98: Hospitalier | B98: Vestibule d'entrée | C98: 21
A99: Hospitalier | B99: Salle d'attente | C99: 21
A100: Hospitalier | B100: Toilettes | C100: 21
A101: Hospitalier | B101: Infirmerie | C101: 21
A102: Hospitalier | B102: Salle de consultation medicale | C102: 21
A103: Hospitalier | B103: Salle de traitement médical | C103: 21
A104: Hospitalier | B104: Bloc opératoire | C104: 21
A105: Hospitalier | B105: Chambre d'hôpital | C105: 21
A106: Hospitalier | B106: Salle d'eau 2 | C106: 21
A107: Hospitalier | B107: Cafétéria | C107: 21
A108: Hospitalier | B108: Salle à manger | C108: 21
A109: Hospitalier | B109: Bureau 2 | C109: 21
A110: Hospitalier | B110: Zone administrative | C110: 21
A111: Hospitalier | B111: Salle de repos | C111: 21
A112: Hospitalier | B112: Laboratoire | C112: 21
A113: Hospitalier | B113: Escaliers 2 | C113: 20
A114: Hospitalier | B114: Cuisine 2 | C114: 19
A115: Hospitalier | B115: Vestiaires | C115: 21
A116: Industriel | B116: Bureau 1 | C116: 21
A117: Industriel | B117: Toilettes | C117: 21
